[Event "*** Titled Tuesday Blitz"]
[Site "Chess.com"]
[Date "2020.11.10"]
[Round "3"]
[White "Anna_ChessMate"]
[Black "CM_rui"]
[Result "1-0"]
[WhiteElo "2604"]
[BlackElo "2392"]
[TimeControl "180+1"]
[EndTime "10:31:07 PST"]
[Termination "Anna_ChessMate won on time"]

1. d4 {[%clk 0:03:00.9]} 1... Nf6 {[%clk 0:02:59.9]} 2. c4 {[%clk 0:03:00.8]}
2... e6 {[%clk 0:03:00]} 3. Nf3 {[%clk 0:02:59.9]} 3... Bb4+ {[%clk 0:03:00.4]}
4. Bd2 {[%clk 0:02:59.6]} 4... Qe7 {[%clk 0:03:00.9]} 5. g3 {[%clk 0:02:59.5]}
5... O-O {[%clk 0:02:57.3]} 6. Bg2 {[%clk 0:02:59.3]} 6... Bxd2+ {[%clk
0:02:57.8]} 7. Nbxd2 {[%clk 0:02:58.9]} 7... d6 {[%clk 0:02:58.1]} 8. O-O {[%clk
0:02:59.2]} 8... e5 {[%clk 0:02:58.2]} 9. e4 {[%clk 0:02:59]} 9... a5 {[%clk
0:02:56.2]} 10. Re1 {[%clk 0:02:58.9]} 10... b6 {[%clk 0:02:56.4]} 11. Rc1
{[%clk 0:02:58.5]} 11... Bb7 {[%clk 0:02:52.8]} 12. Qc2 {[%clk 0:02:56.6]} 12...
Na6 {[%clk 0:02:49.1]} 13. a3 {[%clk 0:02:53.8]} 13... c5 {[%clk 0:02:40.4]} 14.
dxe5 {[%clk 0:02:44.1]} 14... dxe5 {[%clk 0:02:39.8]} 15. Nf1 {[%clk 0:02:41.5]}
15... Nc7 {[%clk 0:02:32.4]} 16. Nh4 {[%clk 0:02:40.9]} 16... Ne6 {[%clk
0:02:23.3]} 17. Nf5 {[%clk 0:02:40.6]} 17... Qc7 {[%clk 0:02:23.1]} 18. N1e3
{[%clk 0:02:36.7]} 18... Rad8 {[%clk 0:02:16.4]} 19. Nd5 {[%clk 0:02:34.6]}
19... Nxd5 {[%clk 0:02:06.7]} 20. cxd5 {[%clk 0:02:32.9]} 20... Nd4 {[%clk
0:01:44.9]} 21. Nxd4 {[%clk 0:02:32.5]} 21... exd4 {[%clk 0:01:45.8]} 22. b4
{[%clk 0:02:32.6]} 22... axb4 {[%clk 0:01:43]} 23. axb4 {[%clk 0:02:33.5]} 23...
Rc8 {[%clk 0:01:42.3]} 24. Bh3 {[%clk 0:02:31.8]} 24... c4 {[%clk 0:01:23.1]}
25. Bxc8 {[%clk 0:02:27.4]} 25... Rxc8 {[%clk 0:01:24]} 26. Qd2 {[%clk
0:02:23.4]} 26... d3 {[%clk 0:01:13.1]} 27. Qc3 {[%clk 0:02:22]} 27... b5 {[%clk
0:01:11]} 28. Qd4 {[%clk 0:02:20.4]} 28... Qe7 {[%clk 0:01:08.2]} 29. Qb6 {[%clk
0:02:18.2]} 29... d2 {[%clk 0:01:03.1]} 30. Qxb5 {[%clk 0:02:17.9]} 30...
dxe1=Q+ {[%clk 0:00:55.5]} 31. Rxe1 {[%clk 0:02:18.8]} 31... c3 {[%clk
0:00:52.6]} 32. d6 {[%clk 0:02:18.6]} 32... Qe6 {[%clk 0:00:06.5]} 33. Qxb7
{[%clk 0:02:16.8]} 33... c2 {[%clk 0:00:06.3]} 34. d7 {[%clk 0:02:06.9]} 34...
Rd8 {[%clk 0:00:05]} 35. Rc1 {[%clk 0:02:05.5]} 35... Qxd7 {[%clk 0:00:01.9]}
36. Qxd7 {[%clk 0:02:04.3]} 36... Rxd7 {[%clk 0:00:02.8]} 37. Rxc2 {[%clk
0:02:05.2]} 37... Kf8 {[%clk 0:00:03.5]} 38. Rb2 {[%clk 0:02:03.4]} 38... Rd4
{[%clk 0:00:03.8]} 39. f3 {[%clk 0:01:58.2]} 39... Rd6 {[%clk 0:00:04]} 40. b5
{[%clk 0:01:57.8]} 40... Rb6 {[%clk 0:00:04.6]} 41. Kf2 {[%clk 0:01:57.9]} 41...
Ke7 {[%clk 0:00:05.2]} 42. Ke3 {[%clk 0:01:57.4]} 42... Ke6 {[%clk 0:00:06.1]}
43. Kd4 {[%clk 0:01:56]} 43... Kd6 {[%clk 0:00:05.4]} 44. e5+ {[%clk 0:01:56.1]}
44... Kc7 {[%clk 0:00:04.9]} 45. Kc5 {[%clk 0:01:56.3]} 45... Kb7 {[%clk
0:00:04.9]} 46. Rd2 {[%clk 0:01:55.3]} 46... Re6 {[%clk 0:00:04.6]} 47. f4
{[%clk 0:01:53.1]} 47... g5 {[%clk 0:00:04.4]} 48. Rd7+ {[%clk 0:01:52.2]} 48...
Kc8 {[%clk 0:00:04.4]} 49. Rxf7 {[%clk 0:01:52.2]} 49... gxf4 {[%clk 0:00:04.4]}
50. gxf4 {[%clk 0:01:53.1]} 50... h5 {[%clk 0:00:04.9]} 51. b6 {[%clk
0:01:52.4]} 51... h4 {[%clk 0:00:04.4]} 52. Rf6 {[%clk 0:01:47.3]} 52... Re7
{[%clk 0:00:04.1]} 53. e6 {[%clk 0:01:46.9]} 53... Rg7 {[%clk 0:00:03.7]} 54.
Kc6 {[%clk 0:01:44.2]} 54... Rg8 {[%clk 0:00:03.1]} 55. e7 {[%clk 0:01:41.6]}
1-0

[Event "*** Titled Tuesday Blitz"]
[Site "Chess.com"]
[Date "2020.11.10"]
[Round "3"]
[White "Fortitudine"]
[Black "Goryachkina"]
[Result "0-1"]
[WhiteElo "2281"]
[BlackElo "2595"]
[TimeControl "180+1"]
[EndTime "10:31:08 PST"]
[Termination "Goryachkina won by resignation"]

1. c4 {[%clk 0:03:00.9]} 1... Nf6 {[%clk 0:02:56.8]} 2. g3 {[%clk 0:03:00.3]}
2... g6 {[%clk 0:02:51.1]} 3. Bg2 {[%clk 0:02:59.9]} 3... Bg7 {[%clk 0:02:51.4]}
4. Nc3 {[%clk 0:03:00.2]} 4... O-O {[%clk 0:02:50.9]} 5. e4 {[%clk 0:03:00.5]}
5... e5 {[%clk 0:02:49.2]} 6. Nge2 {[%clk 0:02:59.7]} 6... c5 {[%clk 0:02:44.1]}
7. d3 {[%clk 0:02:58.9]} 7... Nc6 {[%clk 0:02:43.8]} 8. O-O {[%clk 0:02:58.7]}
8... d6 {[%clk 0:02:43.5]} 9. Nd5 {[%clk 0:02:56]} 9... Nxd5 {[%clk 0:02:35.4]}
10. cxd5 {[%clk 0:02:56.9]} 10... Nd4 {[%clk 0:02:34.3]} 11. Nxd4 {[%clk
0:02:56.8]} 11... cxd4 {[%clk 0:02:32.5]} 12. Bd2 {[%clk 0:02:57.2]} 12... h5
{[%clk 0:02:19.8]} 13. h4 {[%clk 0:02:54]} 13... Bg4 {[%clk 0:02:18.3]} 14. f3
{[%clk 0:02:52.7]} 14... Bd7 {[%clk 0:02:17.1]} 15. Rc1 {[%clk 0:02:44]} 15...
Bb5 {[%clk 0:02:14.6]} 16. Qb3 {[%clk 0:02:37.4]} 16... Qd7 {[%clk 0:02:13.3]}
17. Rf2 {[%clk 0:02:15.4]} 17... Rac8 {[%clk 0:02:08]} 18. Rxc8 {[%clk
0:02:06.2]} 18... Rxc8 {[%clk 0:02:07.3]} 19. Kh2 {[%clk 0:02:06.3]} 19... a6
{[%clk 0:01:26.4]} 20. Bb4 {[%clk 0:01:49.1]} 20... Rc1 {[%clk 0:01:13.8]} 21.
Rc2 {[%clk 0:01:37.9]} 21... Ba4 {[%clk 0:01:07]} 22. Rxc1 {[%clk 0:01:23.8]}
22... Bxb3 {[%clk 0:01:06.8]} 23. axb3 {[%clk 0:01:23.5]} 23... Bf8 {[%clk
0:01:05]} 24. Bh3 {[%clk 0:00:46.6]} 24... Qb5 {[%clk 0:01:03.7]} 25. Ba3 {[%clk
0:00:43.8]} 25... Qxd3 {[%clk 0:01:01.4]} 26. Rc8 {[%clk 0:00:44.3]} 26... Kg7
{[%clk 0:00:59.7]} 27. Rc7 {[%clk 0:00:38.7]} 27... Qe2+ {[%clk 0:00:57.2]} 28.
Kg1 {[%clk 0:00:35.7]} 28... Qxf3 {[%clk 0:00:50.6]} 29. Be6 {[%clk 0:00:34]}
29... Qxg3+ {[%clk 0:00:50.6]} 30. Kf1 {[%clk 0:00:32.2]} 30... Qf3+ {[%clk
0:00:47]} 31. Ke1 {[%clk 0:00:29.9]} 31... Qxe4+ {[%clk 0:00:45.8]} 32. Kd1
{[%clk 0:00:29.5]} 32... Qf3+ {[%clk 0:00:43.8]} 33. Kd2 {[%clk 0:00:28]} 33...
e4 {[%clk 0:00:42]} 34. Rxf7+ {[%clk 0:00:17]} 34... Qxf7 {[%clk 0:00:41.2]} 35.
Bxf7 {[%clk 0:00:17.9]} 35... Kxf7 {[%clk 0:00:42.1]} 36. Bb4 {[%clk 0:00:18.4]}
36... Kf6 {[%clk 0:00:42]} 37. Ke2 {[%clk 0:00:19]} 37... Ke5 {[%clk 0:00:41.9]}
0-1

[Event "*** Titled Tuesday Blitz"]
[Site "Chess.com"]
[Date "2020.11.10"]
[Round "3"]
[White "alejanchess73"]
[Black "swimmerchess"]
[Result "1-0"]
[WhiteElo "2475"]
[BlackElo "2827"]
[TimeControl "180+1"]
[EndTime "10:31:08 PST"]
[Termination "alejanchess73 won on time"]

1. d4 {[%clk 0:03:00.7]} 1... Nf6 {[%clk 0:02:59.4]} 2. c4 {[%clk 0:02:59.7]}
2... g6 {[%clk 0:02:57.9]} 3. Nc3 {[%clk 0:02:59.4]} 3... Bg7 {[%clk 0:02:57.5]}
4. Nf3 {[%clk 0:02:58.4]} 4... O-O {[%clk 0:02:56.9]} 5. g3 {[%clk 0:02:59]}
5... d6 {[%clk 0:02:57]} 6. Bg2 {[%clk 0:02:59.5]} 6... Nbd7 {[%clk 0:02:56.7]}
7. O-O {[%clk 0:02:59.8]} 7... e5 {[%clk 0:02:56.8]} 8. h3 {[%clk 0:02:56.2]}
8... Re8 {[%clk 0:02:55.5]} 9. Bg5 {[%clk 0:02:53.4]} 9... h6 {[%clk 0:02:46.5]}
10. Be3 {[%clk 0:02:52.3]} 10... c6 {[%clk 0:02:45]} 11. Rc1 {[%clk 0:02:50.8]}
11... a6 {[%clk 0:02:42.6]} 12. b4 {[%clk 0:02:50.3]} 12... e4 {[%clk
0:01:38.7]} 13. Nd2 {[%clk 0:02:46.2]} 13... d5 {[%clk 0:01:38.4]} 14. cxd5
{[%clk 0:02:38.6]} 14... cxd5 {[%clk 0:01:32.6]} 15. Nb3 {[%clk 0:02:36.9]}
15... b6 {[%clk 0:01:29.9]} 16. a4 {[%clk 0:02:36]} 16... Bb7 {[%clk 0:01:24.3]}
17. a5 {[%clk 0:02:35]} 17... b5 {[%clk 0:01:17.9]} 18. Nc5 {[%clk 0:02:32.6]}
18... Nxc5 {[%clk 0:01:14.2]} 19. dxc5 {[%clk 0:02:32.7]} 19... Bc6 {[%clk
0:00:58.5]} 20. Bd4 {[%clk 0:02:32]} 20... Ra7 {[%clk 0:00:52.7]} 21. e3 {[%clk
0:02:31.8]} 21... Rae7 {[%clk 0:00:46.3]} 22. Ne2 {[%clk 0:02:27.5]} 22... g5
{[%clk 0:00:44]} 23. Qd2 {[%clk 0:02:18.7]} 23... Qd7 {[%clk 0:00:39.4]} 24. Qb2
{[%clk 0:02:17.9]} 24... Qf5 {[%clk 0:00:24.5]} 25. f4 {[%clk 0:01:51.3]} 25...
Re6 {[%clk 0:00:11]} 26. g4 {[%clk 0:01:39.5]} 26... Nxg4 {[%clk 0:00:08.3]} 27.
hxg4 {[%clk 0:01:38.3]} 27... Qxg4 {[%clk 0:00:09.2]} 28. f5 {[%clk 0:01:33.4]}
28... Bxd4 {[%clk 0:00:07.7]} 29. Nxd4 {[%clk 0:01:28.5]} 29... Rf6 {[%clk
0:00:06.8]} 30. Qe2 {[%clk 0:01:21.1]} 30... Qg3 {[%clk 0:00:03.6]} 31. Qf2
{[%clk 0:01:03.1]} 31... Qe5 {[%clk 0:00:03.1]} 32. Qe2 {[%clk 0:00:50.6]} 32...
Kg7 {[%clk 0:00:01.5]} 33. Qh5 {[%clk 0:00:49.9]} 1-0

[Event "*** Titled Tuesday Blitz"]
[Site "Chess.com"]
[Date "2020.11.10"]
[Round "3"]
[White "swisspower96"]
[Black "davigator"]
[Result "1-0"]
[WhiteElo "2586"]
[BlackElo "2383"]
[TimeControl "180+1"]
[EndTime "10:31:12 PST"]
[Termination "swisspower96 won by checkmate"]

1. g4 {[%clk 0:03:00.9]} 1... d5 {[%clk 0:02:57.5]} 2. Bg2 {[%clk 0:02:57.1]}
2... c6 {[%clk 0:02:57.8]} 3. c4 {[%clk 0:02:52.2]} 3... dxc4 {[%clk 0:02:57.1]}
4. h3 {[%clk 0:02:51.6]} 4... e5 {[%clk 0:02:56.9]} 5. Qc2 {[%clk 0:02:49.8]}
5... Be6 {[%clk 0:02:56]} 6. Nf3 {[%clk 0:02:39.8]} 6... Nd7 {[%clk 0:02:55]} 7.
Na3 {[%clk 0:02:20.8]} 7... Bxa3 {[%clk 0:02:51.2]} 8. bxa3 {[%clk 0:02:21.7]}
8... f6 {[%clk 0:02:50.3]} 9. a4 {[%clk 0:02:20.1]} 9... Ne7 {[%clk 0:02:45.1]}
10. d4 {[%clk 0:02:01.5]} 10... cxd3 {[%clk 0:02:44.3]} 11. exd3 {[%clk
0:02:01.6]} 11... O-O {[%clk 0:02:43.5]} 12. O-O {[%clk 0:02:01.2]} 12... Nd5
{[%clk 0:02:42.1]} 13. d4 {[%clk 0:01:58.9]} 13... Nf4 {[%clk 0:02:15.4]} 14.
Bxf4 {[%clk 0:01:38.4]} 14... exf4 {[%clk 0:02:15.5]} 15. Nh4 {[%clk 0:01:34.7]}
15... Nb6 {[%clk 0:02:10.2]} 16. Be4 {[%clk 0:01:25.4]} 16... f5 {[%clk
0:01:35.6]} 17. Nxf5 {[%clk 0:00:22.9]} 17... Bd5 {[%clk 0:01:33.3]} 18. Rfe1
{[%clk 0:00:17.7]} 18... g6 {[%clk 0:01:30.7]} 19. Ne7+ {[%clk 0:00:12.7]} 19...
Kg7 {[%clk 0:01:27.7]} 20. Bxg6 {[%clk 0:00:11.7]} 20... Rh8 {[%clk 0:01:16.5]}
21. Bd3 {[%clk 0:00:08.1]} 21... h5 {[%clk 0:00:54.5]} 22. Nf5+ {[%clk
0:00:05.7]} 22... Kf6 {[%clk 0:00:55]} 23. Qe2 {[%clk 0:00:05]} 23... Qe8 {[%clk
0:00:52.7]} 24. Qd2 {[%clk 0:00:02.5]} 24... Qb8 {[%clk 0:00:46.5]} 25. Re5
{[%clk 0:00:02.7]} 25... hxg4 {[%clk 0:00:44.7]} 26. Qxf4 {[%clk 0:00:03]} 26...
Nd7 {[%clk 0:00:33.4]} 27. Nd6+ {[%clk 0:00:03.1]} 27... Kg7 {[%clk 0:00:32.1]}
28. Rg5+ {[%clk 0:00:03.4]} 28... Kh6 {[%clk 0:00:31]} 29. Rxg4+ {[%clk
0:00:03.9]} 29... Kh5 {[%clk 0:00:29.8]} 30. Bg6# {[%clk 0:00:02.5]} 1-0

[Event "*** Titled Tuesday Blitz"]
[Site "Chess.com"]
[Date "2020.11.10"]
[Round "3"]
[White "LawrenceTrent"]
[Black "Kiborg95"]
[Result "1-0"]
[WhiteElo "2533"]
[BlackElo "2735"]
[TimeControl "180+1"]
[EndTime "10:31:14 PST"]
[Termination "LawrenceTrent won by resignation"]

1. d4 {[%clk 0:02:57.9]} 1... d6 {[%clk 0:03:00.3]} 2. e4 {[%clk 0:02:57]} 2...
Nf6 {[%clk 0:03:00.4]} 3. Nc3 {[%clk 0:02:57.2]} 3... e5 {[%clk 0:03:01]} 4. Nf3
{[%clk 0:02:56.6]} 4... Nbd7 {[%clk 0:03:01.1]} 5. g4 {[%clk 0:02:55.5]} 5...
Nxg4 {[%clk 0:02:59]} 6. Rg1 {[%clk 0:02:55.4]} 6... Ngf6 {[%clk 0:02:59.1]} 7.
Be3 {[%clk 0:02:55]} 7... g6 {[%clk 0:02:57.4]} 8. Qd2 {[%clk 0:02:50.9]} 8...
Bg7 {[%clk 0:02:56.8]} 9. O-O-O {[%clk 0:02:51]} 9... Qe7 {[%clk 0:02:57.3]} 10.
Kb1 {[%clk 0:02:48.9]} 10... c6 {[%clk 0:02:53.7]} 11. a4 {[%clk 0:02:40.7]}
11... b6 {[%clk 0:02:28.6]} 12. Bc4 {[%clk 0:02:30]} 12... Bb7 {[%clk
0:02:19.6]} 13. Bb3 {[%clk 0:02:18.4]} 13... a6 {[%clk 0:02:18.7]} 14. Bh6
{[%clk 0:02:12.3]} 14... Bxh6 {[%clk 0:01:41.7]} 15. Qxh6 {[%clk 0:02:13.2]}
15... O-O-O {[%clk 0:01:42.1]} 16. dxe5 {[%clk 0:02:07.9]} 16... dxe5 {[%clk
0:01:41.1]} 17. Ng5 {[%clk 0:02:07.6]} 17... Rdf8 {[%clk 0:01:37.7]} 18. f3
{[%clk 0:01:57.7]} 18... Nc5 {[%clk 0:01:35.6]} 19. Ba2 {[%clk 0:01:57.6]} 19...
b5 {[%clk 0:01:33.6]} 20. axb5 {[%clk 0:01:53.1]} 20... axb5 {[%clk 0:01:34.5]}
21. Ne2 {[%clk 0:01:36]} 21... Kc7 {[%clk 0:01:30.4]} 22. Rd2 {[%clk 0:01:32.1]}
22... Bc8 {[%clk 0:01:22.4]} 23. Rgd1 {[%clk 0:01:29.4]} 23... Ne6 {[%clk
0:01:14.7]} 24. Qh4 {[%clk 0:01:12.4]} 24... Ng8 {[%clk 0:00:45.5]} 25. Bxe6
{[%clk 0:01:03.7]} 25... Bxe6 {[%clk 0:00:45.6]} 26. Nxe6+ {[%clk 0:00:34.3]}
26... Qxe6 {[%clk 0:00:40.2]} 27. Rd8 {[%clk 0:00:33.8]} 27... Nf6 {[%clk
0:00:37.3]} 28. R8d6 {[%clk 0:00:30.4]} 28... Rd8 {[%clk 0:00:20]} 29. Rxe6
{[%clk 0:00:27.7]} 29... Rxd1+ {[%clk 0:00:20.9]} 30. Nc1 {[%clk 0:00:27]} 30...
Nd7 {[%clk 0:00:21.3]} 31. Re7 {[%clk 0:00:25.8]} 31... Rd8 {[%clk 0:00:21.3]}
32. b3 {[%clk 0:00:25.5]} 32... Kb7 {[%clk 0:00:21.3]} 33. Kb2 {[%clk
0:00:25.6]} 33... Kb6 {[%clk 0:00:21.9]} 34. Nd3 {[%clk 0:00:25.6]} 34... Rd2
{[%clk 0:00:22.1]} 35. Qxh7 {[%clk 0:00:24.7]} 1-0

[Event "*** Titled Tuesday Blitz"]
[Site "Chess.com"]
[Date "2020.11.10"]
[Round "3"]
[White "SanchezKelvin"]
[Black "Gajuchess"]
[Result "0-1"]
[WhiteElo "2438"]
[BlackElo "2721"]
[TimeControl "180+1"]
[EndTime "10:31:14 PST"]
[Termination "Gajuchess won on time"]

1. d4 {[%clk 0:03:00.9]} 1... Nf6 {[%clk 0:03:00.3]} 2. c4 {[%clk 0:03:01]} 2...
e6 {[%clk 0:03:01.1]} 3. Nf3 {[%clk 0:03:01]} 3... Bb4+ {[%clk 0:03:01.8]} 4.
Bd2 {[%clk 0:02:59]} 4... a5 {[%clk 0:03:02.1]} 5. g3 {[%clk 0:02:58.6]} 5...
O-O {[%clk 0:03:02.6]} 6. Bg2 {[%clk 0:02:58.8]} 6... d5 {[%clk 0:03:03.3]} 7.
Qc2 {[%clk 0:02:55.3]} 7... Be7 {[%clk 0:03:03.2]} 8. O-O {[%clk 0:02:54.8]}
8... Nbd7 {[%clk 0:03:03.7]} 9. Bf4 {[%clk 0:02:53]} 9... c6 {[%clk 0:03:04]}
10. Nbd2 {[%clk 0:02:52.4]} 10... Nh5 {[%clk 0:03:03.4]} 11. Be3 {[%clk
0:02:52]} 11... b6 {[%clk 0:03:03.7]} 12. Ne5 {[%clk 0:02:35.2]} 12... Nxe5
{[%clk 0:03:01.2]} 13. dxe5 {[%clk 0:02:35.1]} 13... d4 {[%clk 0:03:01.5]} 14.
Bxc6 {[%clk 0:02:29.6]} 14... dxe3 {[%clk 0:02:58.8]} 15. Bxa8 {[%clk
0:02:28.7]} 15... exd2 {[%clk 0:02:45.6]} 16. Rfd1 {[%clk 0:02:23.6]} 16... Qc7
{[%clk 0:02:46]} 17. f4 {[%clk 0:02:09.7]} 17... Bc5+ {[%clk 0:02:43]} 18. Kg2
{[%clk 0:02:06.8]} 18... Bb7+ {[%clk 0:02:26.2]} 19. Bxb7 {[%clk 0:02:06.4]}
19... Qxb7+ {[%clk 0:02:27.1]} 20. Kh3 {[%clk 0:02:05.7]} 20... Be3 {[%clk
0:02:18]} 21. Qd3 {[%clk 0:01:58.8]} 21... Bxf4 {[%clk 0:02:17.1]} 22. g4 {[%clk
0:01:52]} 22... Qe7 {[%clk 0:02:03.6]} 23. gxh5 {[%clk 0:01:25.7]} 23... Rd8
{[%clk 0:02:03.1]} 24. Qf3 {[%clk 0:01:24.3]} 24... Bxe5 {[%clk 0:02:02.7]} 25.
Kg2 {[%clk 0:01:18]} 25... Qg5+ {[%clk 0:01:51.8]} 26. Kh1 {[%clk 0:01:17.6]}
26... Bxb2 {[%clk 0:01:44.5]} 27. Rab1 {[%clk 0:01:15.2]} 27... Bd4 {[%clk
0:01:42]} 28. Rb5 {[%clk 0:01:01.1]} 28... Bc5 {[%clk 0:01:40.9]} 29. Rb2 {[%clk
0:00:57.5]} 29... h6 {[%clk 0:01:26.7]} 30. Rbb1 {[%clk 0:00:50.6]} 30... Rd4
{[%clk 0:01:21.5]} 31. Rf1 {[%clk 0:00:48.7]} 31... f5 {[%clk 0:01:17.4]} 32.
Qc6 {[%clk 0:00:35.7]} 32... Re4 {[%clk 0:01:12]} 33. Qe8+ {[%clk 0:00:29.4]}
33... Kh7 {[%clk 0:01:12]} 34. Rbd1 {[%clk 0:00:03.1]} 34... Rxe2 {[%clk
0:01:09.6]} 35. Qg6+ {[%clk 0:00:03]} 35... Qxg6 {[%clk 0:01:09.7]} 36. hxg6+
{[%clk 0:00:03.9]} 36... Kxg6 {[%clk 0:01:10.6]} 37. Rf3 {[%clk 0:00:04.2]}
37... Re1+ {[%clk 0:01:09.2]} 38. Rf1 {[%clk 0:00:03]} 38... Rxf1+ {[%clk
0:01:09.4]} 39. Rxf1 {[%clk 0:00:02.5]} 39... Bf2 {[%clk 0:01:07.6]} 40. Rd1
{[%clk 0:00:02]} 40... Be1 {[%clk 0:01:07.9]} 41. Kg2 {[%clk 0:00:02.9]} 41...
e5 {[%clk 0:01:08.1]} 42. Kf3 {[%clk 0:00:03]} 42... e4+ {[%clk 0:01:07.4]} 43.
Ke2 {[%clk 0:00:03.2]} 43... f4 {[%clk 0:01:07.5]} 44. Rb1 {[%clk 0:00:01.3]}
44... f3+ {[%clk 0:01:07.7]} 0-1

[Event "*** Titled Tuesday Blitz"]
[Site "Chess.com"]
[Date "2020.11.10"]
[Round "3"]
[White "KatarinaOstojic"]
[Black "Make_it_shine060"]
[Result "0-1"]
[WhiteElo "2331"]
[BlackElo "2214"]
[TimeControl "180+1"]
[EndTime "10:31:14 PST"]
[Termination "Make_it_shine060 won on time"]

1. d4 {[%clk 0:03:00.9]} 1... Nf6 {[%clk 0:02:58.8]} 2. Nf3 {[%clk 0:03:01.4]}
2... g6 {[%clk 0:02:51.8]} 3. Bg5 {[%clk 0:03:00.4]} 3... Ne4 {[%clk 0:02:48.1]}
4. Bh4 {[%clk 0:02:59.1]} 4... Bg7 {[%clk 0:02:47.8]} 5. e3 {[%clk 0:02:59.4]}
5... c5 {[%clk 0:02:31]} 6. c3 {[%clk 0:02:58.5]} 6... cxd4 {[%clk 0:02:28.8]}
7. exd4 {[%clk 0:02:58]} 7... d5 {[%clk 0:02:24.7]} 8. Nbd2 {[%clk 0:02:56.5]}
8... Nxd2 {[%clk 0:02:22.6]} 9. Qxd2 {[%clk 0:02:57.4]} 9... O-O {[%clk
0:02:22.1]} 10. Be2 {[%clk 0:02:57]} 10... Nc6 {[%clk 0:02:21.2]} 11. O-O {[%clk
0:02:57]} 11... Bg4 {[%clk 0:02:17.3]} 12. Rfe1 {[%clk 0:02:48.1]} 12... Qb6
{[%clk 0:02:06.2]} 13. Rad1 {[%clk 0:02:08.1]} 13... e6 {[%clk 0:02:03.2]} 14.
h3 {[%clk 0:01:49.3]} 14... Bxf3 {[%clk 0:02:02.2]} 15. Bxf3 {[%clk 0:01:50.2]}
15... Rac8 {[%clk 0:02:01.1]} 16. b3 {[%clk 0:01:39.9]} 16... a5 {[%clk
0:01:58.2]} 17. Bg3 {[%clk 0:01:31.4]} 17... a4 {[%clk 0:01:50.4]} 18. b4 {[%clk
0:01:23.4]} 18... Rfd8 {[%clk 0:01:43]} 19. a3 {[%clk 0:01:21.2]} 19... Na7
{[%clk 0:01:40.4]} 20. Rc1 {[%clk 0:01:14.1]} 20... Nb5 {[%clk 0:01:39]} 21. Qb2
{[%clk 0:01:13.3]} 21... Rc6 {[%clk 0:01:30]} 22. Be5 {[%clk 0:01:11.2]} 22...
Bxe5 {[%clk 0:01:28]} 23. Rxe5 {[%clk 0:01:11.6]} 23... Rdc8 {[%clk 0:01:26.1]}
24. Re3 {[%clk 0:00:45.2]} 24... Nxd4 {[%clk 0:01:22.1]} 25. Bd1 {[%clk
0:00:43.2]} 25... Nb5 {[%clk 0:01:21.1]} 26. Bxa4 {[%clk 0:00:41]} 26... d4
{[%clk 0:01:17]} 27. Bxb5 {[%clk 0:00:31.9]} 27... Qxb5 {[%clk 0:01:10.9]} 28.
Rf3 {[%clk 0:00:27.2]} 28... d3 {[%clk 0:01:06.9]} 29. Qd2 {[%clk 0:00:25.9]}
29... Rd8 {[%clk 0:01:00.7]} 30. Qf4 {[%clk 0:00:18.1]} 30... Qf5 {[%clk
0:00:49.4]} 31. Qh4 {[%clk 0:00:06]} 31... Qd5 {[%clk 0:00:42.6]} 0-1

[Event "*** Titled Tuesday Blitz"]
[Site "Chess.com"]
[Date "2020.11.10"]
[Round "3"]
[White "AsaHoffmann"]
[Black "rududuyk"]
[Result "1-0"]
[WhiteElo "2399"]
[BlackElo "2164"]
[TimeControl "180+1"]
[EndTime "10:31:15 PST"]
[Termination "AsaHoffmann won on time"]

1. d4 {[%clk 0:02:57.7]} 1... e6 {[%clk 0:02:59.5]} 2. e4 {[%clk 0:02:56.5]}
2... d5 {[%clk 0:02:55.8]} 3. e5 {[%clk 0:02:55]} 3... c5 {[%clk 0:02:55.5]} 4.
Nf3 {[%clk 0:02:54.5]} 4... Nc6 {[%clk 0:02:55.9]} 5. Bd3 {[%clk 0:02:52.7]}
5... Nxd4 {[%clk 0:02:45.3]} 6. Nxd4 {[%clk 0:02:51.1]} 6... cxd4 {[%clk
0:02:45.9]} 7. Nd2 {[%clk 0:02:50.1]} 7... Ne7 {[%clk 0:02:36.8]} 8. Qg4 {[%clk
0:02:48.3]} 8... Nc6 {[%clk 0:02:33.4]} 9. O-O {[%clk 0:02:46.2]} 9... Nxe5
{[%clk 0:02:30.5]} 10. Qg3 {[%clk 0:02:45.1]} 10... Nxd3 {[%clk 0:02:29.9]} 11.
cxd3 {[%clk 0:02:44.9]} 11... Qd6 {[%clk 0:02:24.1]} 12. f4 {[%clk 0:02:41.2]}
12... h5 {[%clk 0:02:19.8]} 13. Nf3 {[%clk 0:02:39.4]} 13... b6 {[%clk
0:02:04.6]} 14. Nxd4 {[%clk 0:02:36.7]} 14... Ba6 {[%clk 0:02:03.7]} 15. Bd2
{[%clk 0:02:25.2]} 15... h4 {[%clk 0:02:01.5]} 16. Qf3 {[%clk 0:02:24.2]} 16...
g6 {[%clk 0:01:51.4]} 17. Bc3 {[%clk 0:02:23.4]} 17... Rh5 {[%clk 0:01:46.1]}
18. Kh1 {[%clk 0:02:20.2]} 18... Rc8 {[%clk 0:01:40.1]} 19. a3 {[%clk
0:02:19.4]} 19... Bh6 {[%clk 0:01:19.9]} 20. Qg4 {[%clk 0:02:13]} 20... Bxd3
{[%clk 0:01:11.8]} 21. Rae1 {[%clk 0:02:10.6]} 21... Bf5 {[%clk 0:00:35.5]} 22.
Qe2 {[%clk 0:02:06.1]} 22... Kf8 {[%clk 0:00:31.2]} 23. Bb4 {[%clk 0:02:05.3]}
23... Rc5 {[%clk 0:00:29.5]} 24. Qe5 {[%clk 0:01:56.8]} 24... Qxe5 {[%clk
0:00:24.1]} 25. fxe5 {[%clk 0:01:56.3]} 25... Bd3 {[%clk 0:00:20]} 26. Nxe6+
{[%clk 0:01:53.6]} 26... Kg8 {[%clk 0:00:19.1]} 27. Rf3 {[%clk 0:01:37]} 27...
Be4 {[%clk 0:00:13.8]} 28. Nxc5 {[%clk 0:01:29.8]} 28... bxc5 {[%clk 0:00:14.7]}
29. Bxc5 {[%clk 0:01:26.2]} 29... Bxf3 {[%clk 0:00:14.5]} 30. gxf3 {[%clk
0:01:26]} 30... Bd2 {[%clk 0:00:12.5]} 31. Re2 {[%clk 0:01:25.3]} 31... Bf4
{[%clk 0:00:12]} 32. Bxa7 {[%clk 0:01:21.8]} 32... Bxe5 {[%clk 0:00:11.8]} 33.
b4 {[%clk 0:01:21.3]} 33... d4 {[%clk 0:00:10.3]} 34. Bc5 {[%clk 0:01:20.1]}
34... f6 {[%clk 0:00:09.2]} 35. f4 {[%clk 0:01:18]} 35... Bxf4 {[%clk
0:00:08.6]} 36. Bxd4 {[%clk 0:01:17.7]} 36... Bc1 {[%clk 0:00:06.3]} 37. a4
{[%clk 0:01:15.9]} 37... Rd5 {[%clk 0:00:05.2]} 38. Bxf6 {[%clk 0:01:15.1]}
38... g5 {[%clk 0:00:04.7]} 39. Kg2 {[%clk 0:01:14.6]} 39... Bf4 {[%clk
0:00:02.8]} 40. a5 {[%clk 0:01:13.6]} 40... Rd3 {[%clk 0:00:02.7]} 41. Ra2
{[%clk 0:01:12.6]} 41... h3+ {[%clk 0:00:02.7]} 42. Kf2 {[%clk 0:01:12.1]} 42...
Bxh2 {[%clk 0:00:02.9]} 43. a6 {[%clk 0:01:11.9]} 43... g4 {[%clk 0:00:03.2]}
44. Bh4 {[%clk 0:01:10.9]} 44... g3+ {[%clk 0:00:02.9]} 45. Bxg3 {[%clk
0:01:09.7]} 45... Bxg3+ {[%clk 0:00:03.8]} 46. Ke2 {[%clk 0:01:09.7]} 46... h2
{[%clk 0:00:03.1]} 47. Kxd3 {[%clk 0:01:08.6]} 47... h1=Q {[%clk 0:00:03.5]} 48.
a7 {[%clk 0:01:08.4]} 48... Qa8 {[%clk 0:00:01.5]} 49. b5 {[%clk 0:01:07.9]} 1-0